fUST/lending_fUST_20250715
["ID","MTS","AMOUNT","RATE_DAILY","PERIOD"]
[372311172,1752585040309,-460.0,0.00019178,2]
[372311174,1752585040321,-460.0,0.00019178,2]
[372311177,1752585040332,-460.0,0.00019178,2]
[372311179,1752585040344,-460.0,0.00019178,2]
[372311181,1752585040355,-460.0,0.00019178,2]
[372311183,1752585040366,-460.0,0.00019178,2]
[372311185,1752585040376,-460.0,0.00019178,2]
[372311187,1752585040388,-460.0,0.00019178,2]
[372311188,1752585040399,-460.0,0.00019178,2]
[372311189,1752585040410,-460.0,0.00019178,2]
[372311190,1752585040421,-460.0,0.00019178,2]
[372311191,1752585040432,-460.0,0.00019178,2]
[372311192,1752585040443,-460.0,0.00019178,2]
[372311193,1752585040454,-460.0,0.00019178,2]
[372311194,1752585040465,-460.0,0.00019178,2]
[372311195,1752585040477,-460.0,0.00019178,2]
[372311196,1752585040488,-460.0,0.00019178,2]
[372311197,1752585040499,-460.0,0.00019178,2]
[372311198,1752585040510,-460.0,0.00019178,2]
[372311199,1752585040520,-460.0,0.00019178,2]
[372311200,1752585040530,-460.0,0.00019178,2]
[372311201,1752585040541,-460.0,0.00019178,2]
[372311202,1752585040552,-460.0,0.00019178,2]
[372311203,1752585040566,-510.58315203,0.00019178,2]
[372311204,1752585040576,-460.0,0.00019178,2]
[372311205,1752585040587,-460.0,0.00019178,2]
[372311206,1752585040597,-460.0,0.00019178,2]
[372311207,1752585040608,-460.0,0.00019178,2]
[372311208,1752585040619,-460.0,0.00019178,2]
[372311209,1752585040629,-460.0,0.00019178,2]
[372311210,1752585040641,-460.0,0.00019178,2]
[372311211,1752585040651,-460.0,0.00019178,2]
[372311212,1752585040663,-460.47407192,0.00019178,2]
[372311213,1752585040872,-460.0,0.00019178,2]
[372311214,1752585040882,-460.0,0.00019178,2]
[372311215,1752585040892,-460.0,0.00019178,2]
[372311216,1752585040902,-460.0,0.00019178,2]
[372311217,1752585040912,-460.0,0.00019178,2]
[372311218,1752585040922,-460.0,0.00019178,2]
[372311219,1752585040931,-460.0,0.00019178,2]
[372311220,1752585040943,-460.0,0.00019178,2]
[372311221,1752585040952,-460.0,0.00019178,2]
[372311222,1752585040962,-462.07838381,0.00019178,2]
[372311223,1752585040972,-460.0,0.00019178,2]
[372311224,1752585040982,-460.0,0.00019178,2]
[372311225,1752585040992,-460.0,0.00019178,2]
[372311226,1752585041001,-460.0,0.00019178,2]
[372311227,1752585041011,-460.0,0.00019178,2]
[372311228,1752585041021,-460.0,0.00019178,2]
[372311229,1752585041031,-460.0,0.00019178,2]
[372311230,1752585041043,-460.0,0.00019178,2]
[372311231,1752585041053,-460.0,0.00019178,2]
[372311232,1752585041066,-460.0,0.00019178,2]
[372311233,1752585041076,-541.40124731,0.00019178,2]
[372311234,1752585041086,-460.0,0.00019178,2]
[372311235,1752585041096,-460.0,0.00019178,2]
[372311236,1752585041106,-460.0,0.00019178,2]
[372311237,1752585041115,-460.0,0.00019178,2]
[372311238,1752585041125,-460.0,0.00019178,2]
[372311239,1752585041135,-460.0,0.00019178,2]
[372311240,1752585041145,-460.0,0.00019178,2]
[372311241,1752585041155,-460.0,0.00019178,2]
[372311242,1752585041164,-460.0,0.00019178,2]
[372311243,1752585041173,-530.24978864,0.00019178,2]
[372311244,1752585041183,-460.0,0.00019178,2]
[372311245,1752585041192,-460.0,0.00019178,2]
[372311246,1752585041202,-460.0,0.00019178,2]
[372311248,1752585041211,-460.0,0.00019178,2]
[372311250,1752585041221,-460.0,0.00019178,2]
[372311252,1752585041231,-460.0,0.00019178,2]
[372311254,1752585041240,-460.0,0.00019178,2]
[372311256,1752585041249,-460.0,0.00019178,2]
[372311258,1752585041259,-460.0,0.00019178,2]
[372311260,1752585041270,-460.0,0.00019178,2]
[372311262,1752585041282,-460.0,0.00019178,2]
[372311264,1752585041291,-460.0,0.00019178,2]
[372311267,1752585041301,-460.0,0.00019178,2]
[372311268,1752585041315,-460.0,0.00019178,2]
[372311271,1752585041324,-460.0,0.00019178,2]
[372311273,1752585041334,-460.0,0.00019178,2]
[372311274,1752585041343,-495.78,0.00019178,2]
[372311276,1752585041355,-460.0,0.00019178,2]
[372311278,1752585041364,-460.0,0.00019178,2]
[372311279,1752585041374,-460.0,0.00019178,2]
[372311280,1752585041383,-460.0,0.00019178,2]
[372311281,1752585041393,-460.0,0.00019178,2]
[372311282,1752585041403,-460.0,0.00019178,2]
[372311283,1752585041412,-460.0,0.00019178,2]
[372311284,1752585041421,-460.0,0.00019178,2]
[372311285,1752585041431,-460.0,0.00019178,2]
[372311286,1752585041442,-464.05545929,0.00019178,2]
[372311287,1752585041451,-460.0,0.00019178,2]
[372311288,1752585041461,-460.0,0.00019178,2]
[372311289,1752585041470,-460.0,0.00019178,2]
[372311290,1752585041479,-460.0,0.00019178,2]
[372311291,1752585041489,-460.0,0.00019178,2]
[372311292,1752585041498,-460.0,0.00019178,2]
[372311293,1752585041508,-460.0,0.00019178,2]
[372311294,1752585041517,-460.0,0.00019178,2]
[372311295,1752585041527,-460.0,0.00019178,2]
[372311296,1752585041537,-460.0,0.00019178,2]
[372311297,1752585041546,-460.0,0.00019178,2]
[372311298,1752585041556,-460.0,0.00019178,2]
[372311299,1752585041566,-460.0,0.00019178,2]
[372311300,1752585041576,-460.0,0.00019178,2]
[372311301,1752585041585,-470.28413226,0.00019178,2]
[372311302,1752585041595,-460.0,0.00019178,2]
[372311303,1752585041605,-460.0,0.00019178,2]
[372311304,1752585041614,-460.0,0.00019178,2]
[372311305,1752585041623,-460.0,0.00019178,2]
[372311306,1752585041633,-460.0,0.00019178,2]
[372311307,1752585041642,-460.0,0.00019178,2]
[372311308,1752585041651,-460.0,0.00019178,2]
[372311309,1752585041661,-460.0,0.00019178,2]
[372311310,1752585041671,-460.0,0.00019178,2]
[372311311,1752585041683,-460.0,0.00019178,2]
[372311312,1752585041693,-416.75843244,0.00019178,2]
[372311313,1752585041702,-460.0,0.00019178,2]
[372311314,1752585041711,-460.0,0.00019178,2]
[372311315,1752585041721,-460.0,0.00019178,2]
[372311316,1752585041730,-216.77210225,0.00019178,2]
[372311317,1752585041740,-243.10649563,0.00019178,2]
[372311318,1752585041750,-460.0,0.00019178,2]
[372311319,1752585041760,-460.0,0.00019178,2]
[372311320,1752585041770,-460.0,0.00019178,2]
[372311321,1752585041780,-460.0,0.00019178,2]
[372311322,1752585041789,-460.0,0.00019178,2]
[372311323,1752585041799,-460.0,0.00019178,2]
[372311324,1752585041811,-415.02916065,0.00019178,2]
[372311325,1752585041820,-460.0,0.00019178,2]
[372311326,1752585041830,-460.0,0.00019178,2]
[372311327,1752585041839,-460.0,0.00019178,2]
[372311328,1752585041849,-460.0,0.00019178,2]
[372311329,1752585041859,-460.0,0.00019178,2]
[372311330,1752585041869,-460.0,0.00019178,2]
[372311331,1752585041879,-460.0,0.00019178,2]
[372311332,1752585041888,-465.86727286,0.00019178,2]
[372311333,1752585041898,-460.0,0.00019178,2]
[372311334,1752585041908,-460.0,0.00019178,2]
[372311335,1752585041918,-460.0,0.00019178,2]
[372311336,1752585041927,-460.0,0.00019178,2]
[372311337,1752585041937,-460.0,0.00019178,2]
[372311338,1752585041947,-509.231931,0.00019178,2]
[372311339,1752585041956,-460.0,0.00019178,2]
[372311340,1752585041966,-460.0,0.00019178,2]
[372311341,1752585041976,-460.0,0.00019178,2]
[372311342,1752585041985,-460.0,0.00019178,2]
[372311343,1752585041995,-460.0,0.00019178,2]
[372311344,1752585042005,-460.0,0.00019178,2]
[372311345,1752585042015,-461.18811205,0.00019178,2]
[372311346,1752585042025,-460.0,0.00019178,2]
[372311347,1752585042034,-460.0,0.00019178,2]
[372311348,1752585042044,-460.0,0.00019178,2]
[372311349,1752585042055,-460.0,0.00019178,2]
[372311350,1752585042065,-460.0,0.00019178,2]
[372311351,1752585042074,-460.0,0.00019178,2]
[372311352,1752585042084,-460.0,0.00019178,2]
[372311353,1752585042093,-321.09837773,0.00019178,2]
[372311354,1752585042103,-460.0,0.00019178,2]
[372311355,1752585042113,-460.0,0.00019178,2]
[372311356,1752585042123,-574.133956,0.00019178,2]
[372311357,1752585042132,-460.0,0.00019178,2]
[372311358,1752585042142,-460.0,0.00019178,2]
[372311359,1752585042151,-460.0,0.00019178,2]
[372311360,1752585042161,-460.0,0.00019178,2]
[372311361,1752585042171,-460.0,0.00019178,2]
[372311362,1752585042181,-460.0,0.00019178,2]
[372311363,1752585042191,-460.0,0.00019178,2]
[372311364,1752585042200,-460.0,0.00019178,2]
[372311365,1752585042211,-460.0,0.00019178,2]
[372311366,1752585042221,-460.0,0.00019178,2]
[372311367,1752585042231,-460.0,0.00019178,2]
[372311368,1752585042242,-460.0,0.00019178,2]
[372311369,1752585042253,-460.0,0.00019178,2]
[372311370,1752585042262,-460.0,0.00019178,2]
[372311371,1752585042276,-460.0,0.00019178,2]
[372311372,1752585042295,-460.0,0.00019178,2]
[372311373,1752585042305,-460.0,0.00019178,2]
[372311374,1752585042314,-460.0,0.00019178,2]
[372311375,1752585042324,-498.78556739,0.00019178,2]
[372311376,1752585042333,-547.27,0.00019178,2]
[372311377,1752585042343,-460.0,0.00019178,2]
[372311378,1752585042352,-460.0,0.00019178,2]
[372311379,1752585042362,-460.0,0.00019178,2]
[372311380,1752585042372,-460.0,0.00019178,2]
[372311381,1752585042381,-460.0,0.00019178,2]
[372311382,1752585042391,-460.0,0.00019178,2]
[372311383,1752585042400,-460.0,0.00019178,2]
[372311384,1752585042410,-460.71008197,0.00019178,2]
[372311385,1752585042420,-460.0,0.00019178,2]
[372311386,1752585042429,-460.0,0.00019178,2]
[372311387,1752585042438,-460.0,0.00019178,2]
[372311388,1752585042448,-460.0,0.00019178,2]
[372311389,1752585042459,-460.0,0.00019178,2]
[372311390,1752585042468,-460.0,0.00019178,2]
[372311391,1752585042478,-161.896207,0.00019178,2]
[372311393,1752585042488,-454.37,0.000192,2]
[372311396,1752585042499,-1501.51417232,0.0001927,2]
[372311399,1752585042509,-460.0,0.00019451,2]
[372311402,1752585042519,-460.0,0.00019451,2]
[372311405,1752585042528,-567.65360559,0.00019451,2]
[372311407,1752585042537,-460.0,0.00019451,2]
[372311410,1752585042547,-460.0,0.00019451,2]
[372311412,1752585042557,-460.0,0.00019451,2]
[372311414,1752585042567,-460.0,0.00019451,2]
[372311416,1752585042577,-460.0,0.00019451,2]
[372311419,1752585042587,-460.0,0.00019451,2]
[372311422,1752585042596,-460.0,0.00019451,2]
[372311425,1752585042607,-460.0,0.00019451,2]
[372311427,1752585042616,-460.0,0.00019452,2]
[372311428,1752585042625,-460.0,0.00019452,2]
[372311429,1752585042634,-461.45731126,0.00019452,2]
[372311430,1752585042644,-460.0,0.00019452,2]
[372311431,1752585042654,-460.0,0.00019452,2]
[372311432,1752585042663,-460.0,0.00019452,2]
[372311433,1752585042672,-460.0,0.00019452,2]
[372311434,1752585042682,-460.0,0.00019452,2]
[372311435,1752585042692,-460.0,0.00019452,2]
[372311436,1752585042703,-460.0,0.00019452,2]
[372311437,1752585042712,-460.0,0.00019452,2]
[372311438,1752585042722,-460.0,0.00019452,2]
[372311439,1752585042731,-511.29638607,0.00019452,2]
[372311440,1752585042741,-460.0,0.00019452,2]
[372311441,1752585042751,-460.0,0.00019452,2]
[372311442,1752585042761,-460.0,0.00019452,2]
[372311443,1752585042771,-460.0,0.00019452,2]
[372311444,1752585042781,-460.0,0.00019452,2]
[372311445,1752585042790,-460.0,0.00019452,2]
[372311446,1752585042800,-460.0,0.00019452,2]
[372311447,1752585042811,-460.0,0.00019452,2]
[372311448,1752585042821,-460.0,0.00019452,2]
[372311449,1752585042830,-460.0,0.00019452,2]
[372311450,1752585042840,-460.0,0.00019452,2]
[372311451,1752585042849,-460.0,0.00019452,2]
[372311452,1752585042858,-460.0,0.00019452,2]
[372311453,1752585042868,-535.6638621,0.00019452,2]
[372311454,1752585042877,-460.0,0.00019452,2]
[372311455,1752585042887,-460.0,0.00019452,2]
[372311456,1752585042897,-460.0,0.00019452,2]
[372311457,1752585042906,-460.0,0.00019452,2]
[372311458,1752585042915,-460.0,0.00019452,2]
[372311459,1752585042925,-460.0,0.00019452,2]
[372311460,1752585042934,-460.0,0.00019452,2]
[372311461,1752585042944,-460.0,0.00019452,2]
[372311462,1752585042953,-460.0,0.00019452,2]
[372311463,1752585042962,-463.45438016,0.00019452,2]
[372311464,1752585042972,-460.0,0.00019452,2]
[372311465,1752585042982,-460.0,0.00019452,2]
[372311466,1752585042992,-460.0,0.00019452,2]
[372311467,1752585043001,-460.0,0.00019452,2]
[372311468,1752585043012,-460.0,0.00019452,2]
[372311469,1752585043022,-460.0,0.00019452,2]
[372311470,1752585043032,-460.0,0.00019452,2]
[372311471,1752585043041,-460.0,0.00019452,2]
[372311472,1752585043051,-460.0,0.00019452,2]
[372311473,1752585043062,-460.0,0.00019452,2]
[372311474,1752585043073,-460.0,0.00019452,2]
[372311475,1752585043082,-460.0,0.00019452,2]
[372311476,1752585043092,-460.0,0.00019452,2]
[372311478,1752585043102,-460.0,0.00019452,2]
[372311479,1752585043111,-460.0,0.00019452,2]
[372311480,1752585043121,-460.0,0.00019452,2]
[372311481,1752585043130,-487.5,0.00019452,2]
[372311482,1752585043139,-460.0,0.00019452,2]
[372311483,1752585043149,-460.0,0.00019452,2]
[372311484,1752585043158,-460.0,0.00019452,2]
[372311485,1752585043167,-460.0,0.00019452,2]
[372311486,1752585043177,-562.7,0.00019452,2]
[372311488,1752585043186,-460.0,0.00019452,2]
[372311489,1752585043195,-460.0,0.00019452,2]
[372311490,1752585043205,-460.0,0.00019452,2]
[372311491,1752585043215,-460.0,0.00019452,2]
[372311492,1752585043224,-460.0,0.00019452,2]
[372311493,1752585043233,-252.17,0.00019452,2]
[372311494,1752585043243,-460.0,0.00019452,2]
[372311495,1752585043252,-460.0,0.00019452,2]
[372311496,1752585043262,-460.0,0.00019452,2]
[372311497,1752585043273,-460.0,0.00019452,2]
[372311498,1752585043284,-460.0,0.00019452,2]
[372311499,1752585043293,-460.0,0.00019452,2]
[372311500,1752585043303,-460.0,0.00019452,2]
[372311501,1752585043313,-460.0,0.00019452,2]
[372311502,1752585043323,-460.0,0.00019452,2]
[372311503,1752585043332,-460.0,0.00019452,2]
[372311504,1752585043342,-460.0,0.00019452,2]
[372311505,1752585043352,-460.0,0.00019452,2]
[372311506,1752585043362,-460.0,0.00019452,2]
[372311508,1752585043371,-460.0,0.00019452,2]
[372311510,1752585043381,-460.0,0.00019452,2]
[372311512,1752585043391,-602.36700849,0.00019452,2]
[372311514,1752585043400,-460.0,0.00019452,2]
[372311516,1752585043410,-460.0,0.00019452,2]
[372311518,1752585043419,-460.0,0.00019452,2]
[372311520,1752585043427,-460.0,0.00019452,2]
[372311522,1752585043436,-460.0,0.00019452,2]
[372311524,1752585043445,-460.0,0.00019452,2]
[372311526,1752585043454,-460.0,0.00019452,2]
[372311528,1752585043464,-460.0,0.00019452,2]
[372311530,1752585043473,-460.0,0.00019452,2]
[372311532,1752585043483,-460.0,0.00019452,2]
[372311534,1752585043493,-460.0,0.00019452,2]
[372311536,1752585043502,-460.0,0.00019452,2]
[372311538,1752585043512,-460.0,0.00019452,2]
[372311540,1752585043522,-460.0,0.00019452,2]
[372311543,1752585043532,-460.0,0.00019452,2]
[372311545,1752585043541,-460.0,0.00019452,2]
[372311546,1752585043550,-433.16174355,0.00019452,2]
[372311548,1752585043561,-460.0,0.00019452,2]
[372311551,1752585043570,-460.0,0.00019452,2]
[372311553,1752585043580,-460.0,0.00019452,2]
[372311554,1752585043589,-460.0,0.00019452,2]
[372311557,1752585043599,-460.0,0.00019452,2]
[372311558,1752585043608,-460.0,0.00019452,2]
[372311561,1752585043619,-397.95170197,0.00019473,2]
[372311563,1752585043629,-500.0,0.00019473,2]
[372311565,1752585043639,-500.0,0.00019473,2]
[372311567,1752585043648,-500.0,0.00019473,2]
[372311569,1752585043658,-500.0,0.00019473,2]
[372311571,1752585043667,-431.41538607,0.00019473,2]
[372311573,1752585043677,-500.11126445,0.00019473,2]
[372311575,1752585043687,-153.22637362,0.00019725,2]
[372311578,1752585043696,-460.0,0.00019725,2]
[372311579,1752585043706,-460.0,0.00019725,2]
[372311582,1752585043715,-460.0,0.00019725,2]
[372311584,1752585043726,-460.0,0.00019725,2]
[372311586,1752585043735,-460.0,0.00019725,2]
[372311588,1752585043746,-460.0,0.00019725,2]
[372311590,1752585043755,-460.0,0.00019725,2]
[372311591,1752585043765,-460.0,0.00019726,2]
[372311594,1752585043775,-460.0,0.00019726,2]
[372311596,1752585043785,-460.0,0.00019726,2]
[372311597,1752585043795,-460.0,0.00019726,2]
[372311599,1752585043805,-77.31520679,0.00019726,2]
[372311609,1752585043889,-382.68479321,0.00019726,2]
[372311611,1752585043899,-460.0,0.00019726,2]
[372311613,1752585043909,-460.0,0.00019726,2]
[372311615,1752585043918,-460.0,0.00019726,2]
[372311617,1752585043928,-460.0,0.00019726,2]
[372311619,1752585043938,-460.0,0.00019726,2]
[372311621,1752585043947,-322.7,0.00019726,2]
[372311623,1752585043957,-77.22064829,0.00019726,2]
[372311657,1752585044283,-0.00091632,0.00019178,2]
[372311668,1752585044384,-459.99908368,0.00019178,2]
[372311670,1752585044394,-460.0,0.00019452,2]
[372311672,1752585044404,-382.77935171,0.00019726,2]
[372311674,1752585044414,-460.0,0.00019726,2]
[372311676,1752585044424,-460.0,0.00019726,2]
[372311678,1752585044433,-460.0,0.00019726,2]
[372311680,1752585044443,-460.0,0.00019726,2]
[372311682,1752585044453,-460.0,0.00019726,2]
[372311684,1752585044463,-460.0,0.00019726,2]
[372311686,1752585044473,-460.0,0.00019726,2]
[372311689,1752585044483,-460.0,0.00019726,2]
[372311690,1752585044493,-460.0,0.00019726,2]
[372311692,1752585044502,-460.0,0.00019726,2]
[372311694,1752585044512,-460.0,0.00019726,2]
[372311696,1752585044521,-460.0,0.00019726,2]
[372311699,1752585044533,-460.0,0.00019726,2]
[372311700,1752585044543,-460.0,0.00019726,2]
[372311702,1752585044552,-460.0,0.00019726,2]
[372311704,1752585044563,-460.0,0.00019726,2]
[372311706,1752585044573,-460.0,0.00019726,2]
[372311708,1752585044582,-460.0,0.00019726,2]
[372311710,1752585044591,-460.0,0.00019726,2]
[372311712,1752585044601,-460.0,0.00019726,2]
[372311714,1752585044610,-1298.93,0.000198,2]
[372311716,1752585044620,-160.0,0.00019867,2]
[372311719,1752585044630,-709.6383413,0.00019956,2]
[372311721,1752585044640,-447.17,0.00019999,2]
[372311723,1752585044650,-359.64,0.00019999,2]
[372311725,1752585044660,-339.27,0.00019999,2]
[372311727,1752585044670,-460.0,0.00019999,2]
[372311729,1752585044681,-183.568206,0.0002,2]
[372311731,1752585044691,-460.0,0.0002,2]
[372311733,1752585044700,-460.0,0.0002,2]
[372311735,1752585044710,-460.0,0.0002,2]
[372311737,1752585044719,-460.0,0.0002,2]
[372311739,1752585044729,-412.16,0.0002,2]
[372311740,1752585044739,-460.0,0.0002,2]
[372311743,1752585044748,-460.0,0.0002,2]
[372311745,1752585044758,-460.0,0.0002,2]
[372311746,1752585044767,-503.73,0.0002,2]
[372311749,1752585044778,-460.0,0.0002,2]
[372311750,1752585044788,-151.54394486,0.0002,2]
[372311752,1752585044797,-275.5,0.0002,2]
[372311754,1752585044806,-200.14,0.0002,2]
[372311756,1752585044817,-1000.0,0.00020021,2]
[372311758,1752585044826,-195.288351,0.00020187,2]
[372311761,1752585044836,-192.15,0.00020273,2]
[372311762,1752585044846,-460.0,0.00020273,2]
[372311764,1752585044855,-273.24,0.00020273,2]
[372311767,1752585044865,-157.34,0.00020273,2]
[372311768,1752585044875,-460.0,0.00020273,2]
[372311770,1752585044884,-460.0,0.00020273,2]
[372311773,1752585044894,-260.0,0.00020415,2]
[372311775,1752585044904,-160.0,0.00020431,2]
[372311776,1752585044913,-525.51022752,0.00020431,2]
[372311778,1752585044922,-230.76969291,0.00020431,2]
[372311780,1752585044932,-160.0,0.00020431,2]
[372311782,1752585044941,-160.0,0.00020431,2]
[372311784,1752585044951,-160.0,0.00020431,2]
[372311786,1752585044960,-838.84061749,0.00020431,2]
[372311788,1752585044970,-215.50840239,0.00020431,2]
[372311790,1752585044979,-477.51,0.00020547,2]
[372311792,1752585044988,-460.0,0.00020547,2]
[372311794,1752585044998,-460.0,0.00020547,2]
[372311796,1752585045008,-1500.0,0.00020568,2]
[372311798,1752585045017,-366.836,0.00020788,2]
[372311800,1752585045027,-460.0,0.00020821,2]
[372311802,1752585045036,-460.0,0.00020821,2]
[372311804,1752585045046,-709.6383413,0.00020838,2]
[372311806,1752585045055,-360.0,0.00020963,2]
[372311808,1752585045066,-460.0,0.00021095,2]
[372311810,1752585045075,-460.0,0.00021095,2]
[372311812,1752585045085,-2000.0,0.00021116,2]
[372311814,1752585045094,-460.0,0.00021369,2]
[372311816,1752585045104,-460.0,0.00021369,2]
[372311818,1752585045113,-207.4,0.00021492,2]
[372311820,1752585045122,-460.0,0.00021511,2]
[372311822,1752585045131,-460.0,0.00021643,2]
[372311824,1752585045140,-306.12113649,0.00021643,2]
[372311826,1752585045149,-2474.90856,0.00021664,2]
[372311828,1752585045160,-500.0,0.00021682,2]
[372311830,1752585045170,-709.6383413,0.00021721,2]
[372311832,1752585045179,-150.0,0.000219,2]
[372311834,1752585045190,-454.37,0.000219,2]
[372311836,1752585045199,-743.11463092,0.000219,2]
[372311838,1752585045209,-679.72371288,0.000219,2]
[372311840,1752585045219,-460.0,0.00021917,2]
[372311842,1752585045228,-15341.2,0.00022,7]
[372311844,1752585045237,-1298.93,0.00022,7]
[372311846,1752585045247,-560.0,0.00022058,2]
[372311848,1752585045257,-460.0,0.00022191,2]
[372311850,1752585045267,-460.0,0.00022465,2]
[372311852,1752585045280,-1136.08,0.000225,2]
[372311854,1752585045289,-647.0,0.00022587,2]
[372311857,1752585045300,-2155.0,0.00022587,2]
[372311859,1752585045309,-968.0,0.00022587,2]
[372311861,1752585045319,-407.0,0.00022587,2]
[372311863,1752585045329,-709.6383413,0.00022603,2]
[372311865,1752585045338,-660.0,0.00022606,2]
[372311867,1752585045348,-743.11463089,0.00022738,2]
[372311869,1752585045359,-515.37353171,0.00022739,2]
[372311871,1752585045371,-215.0738,0.00022861,2]
[372311873,1752585045380,-760.0,0.00023154,2]
[372311875,1752585045390,-709.6383413,0.00023486,2]
[372311877,1752585045400,-2200.0,0.00023531,2]
[372311879,1752585045409,-200.0,0.00023561,2]
[372311881,1752585045418,-200.0,0.00023561,2]
[372311883,1752585045427,-200.0,0.00023561,2]
[372311885,1752585045436,-200.0,0.00023561,2]
[372311887,1752585045445,-200.0,0.00023561,2]
[372311889,1752585045455,-200.0,0.00023561,2]
[372311892,1752585045464,-250.20445081,0.00023561,2]
[372311895,1752585045474,-743.11463089,0.00023576,2]
[372311897,1752585045483,-679.72371286,0.00023576,2]
[372311899,1752585045493,-835.08938175,0.00023702,2]
[372311901,1752585045503,-161.896207,0.00023744,2]
[372311903,1752585045512,-500.0,0.00023874,2]
[372311905,1752585045522,-417.56429851,0.000239,2]
[372311907,1752585045532,-1315.0,0.00023948,8]
[372311909,1752585045541,-937.0,0.00024,2]
[372311911,1752585045550,-937.0,0.00024,2]
[372311913,1752585045562,-937.0,0.00024,2]
[372311915,1752585045577,-937.0,0.00024,2]
[372311917,1752585045586,-937.0,0.00024,2]
[372311919,1752585045596,-937.0,0.00024,2]
[372311921,1752585045605,-937.0,0.00024,2]
[372311923,1752585045615,-937.0,0.00024,2]
[372311925,1752585045634,-937.0,0.00024,2]
[372311927,1752585045645,-937.0,0.00024,2]
[372311929,1752585045655,-230.76969291,0.00024,7]
[372311931,1752585045665,-525.51022752,0.00024,7]
[372311933,1752585045674,-838.84061749,0.00024,7]
[372311934,1752585045684,-223.0315306,0.0002423,2]
[372311935,1752585045693,-709.6383413,0.00024368,2]
[372311936,1752585045703,-15341.2,0.000244,7]
[372311937,1752585045713,-743.11463089,0.00024413,2]
[372311938,1752585045723,-1298.93,0.000245,7]
[372311939,1752585045734,-165.58817,0.0002465,7]
[372311940,1752585045743,-165.58817,0.0002465,7]
[372311941,1752585045753,-151.0,0.0002465,7]
[372311942,1752585045762,-388.71212968,0.00024657,2]
[372311943,1752585045772,-200.0,0.00024658,15]
[372311944,1752585045782,-380.0,0.00024658,2]
[372311945,1752585045791,-5552.16,0.0002479,10]
[372311946,1752585045801,-7630.65,0.0002479,10]
[372311947,1752585045811,-6358.87,0.0002479,10]
[372311948,1752585045821,-2000.0,0.000248,2]
[372311949,1752585045831,-151.0,0.000248,7]
[372311950,1752585045840,-34771.7136852,0.000248,2]
[372311951,1752585045850,-667.872213,0.00024814,8]
[372311952,1752585045860,-42498.7611708,0.0002489,2]
[372311953,1752585045869,-165.58817,0.000249,7]
[372311954,1752585045879,-165.58817,0.000249,7]
[372311955,1752585045888,-165.58817,0.000249,7]
[372311956,1752585045898,-165.58817,0.000249,7]
[372311957,1752585045908,-151.0,0.000249,7]
[372311958,1752585045918,-279849.59513754,0.000249,2]
[372311959,1752585045975,-460.0,0.00019178,2]